Cogmind - Beta 13 @@@ ROGUE MODE // 2024.05.12 @ 17:55:28 Player: Dicaso9 Result: Destroyed by H-55 Commando with Gauss Rifle Performance ------------- Evolutions (2) 1000 Regions Visited (5) 1000 Robots Destroyed (51) 255 Value Destroyed (1329) 1329 Prototype IDs (4) 80 Alien Tech Used (0) 0 Bonus (300) 300 TOTAL SCORE: 3964 Bonus ------- Aligned with FarCom 300 Cogmind --------- Core Integrity 0/550 Matter 271/300 Energy 82/240 System Corruption 17% Temperature Cool (38) Movement Walking (190) Ox1 Location -8/Materials Parts ------- > --- POWER (2) -------- Nuclear Core > --- PROPULSION (3) --- Aluminum Leg > --- UTILITY (3) ------ (None) > --- WEAPON (3) ------- Latent Energy Streamer > --- INVENTORY (5) ---- Nuclear Core Nuclear Core Improved Terrain Scanner Rocket Launcher Peak State ------------ > --- POWER ------------ Nuclear Core > --- PROPULSION ------- Aluminum Leg Aluminum Leg Improved Aluminum Leg > --- UTILITY ---------- Medium Storage Unit > --- WEAPON ----------- Beam Rifle Latent Energy Streamer Advanced EMP Blaster > --- INVENTORY -------- Nuclear Core Nuclear Core Nuclear Core Light Nuclear Core Visual Processing Unit Improved Terrain Scanner Field Laser Autogun Rocket Launcher [Rating: 26] Favorites ----------- Power Improved Ion Engine Engine Improved Ion Engine Power Core Nuclear Core Propulsion Aluminum Leg Leg Aluminum Leg Utility Medium Storage Unit Device Improved Heat Sink Storage Medium Storage Unit Processor Visual Processing Unit Protection Hardened Light Armor Plating Weapon Light Assault Rifle Energy Gun Beam Rifle Energy Cannon Latent Energy Streamer Ballistic Gun Light Assault Rifle Launcher Rocket Launcher Build | -11 -10 -10 -10 -9 -8 ------- Run | Yrd Mat Min Exi Min Mat Slots Evolved 4 | . . . . . 4 Power 1 | . . . . . 1 Propulsion 1 | . . . . . 1 Utility 1 | . . . . . 1 Weapon 1 | . . . . . 1 Parts Attached 65 | 7 16 7 4 5 26 Power 11 | 1 3 1 . . 6 Engine 7 | 1 3 1 . . 2 Core 4 | . . . . . 4 Reactor . | . . . . . . Propulsion 17 | 2 5 2 . . 8 Treads . | . . . . . . Leg 17 | 2 5 2 . . 8 Wheel . | . . . . . . Hover . | . . . . . . Flight . | . . . . . . Utility 15 | 2 3 2 2 3 3 Device 7 | 1 3 1 2 . . Storage 2 | 1 . 1 . . . Processor 2 | . . . . 1 1 Hackware . | . . . . . . Protection 4 | . . . . 2 2 Artifact . | . . . . . . Weapon 22 | 2 5 2 2 2 9 Energy Gun 4 | . 1 1 . . 2 Energy Cannon 5 | . . . 2 . 3 Ballistic Gun 10 | 2 3 1 . 2 2 Ballistic Cannon . | . . . . . . Launcher 3 | . 1 . . . 2 Special Weapon . | . . . . . . Impact Weapon . | . . . . . . Slashing Weapon . | . . . . . . Piercing Weapon . | . . . . . . Special Melee Weapon . | . . . . . . Unidentified Prototypes 4 | . . . 2 . 2 Parts Lost 5 | . 2 . . . 3 Power . | . . . . . . Propulsion 2 | . . . . . 2 Utility 1 | . 1 . . . . Weapon 2 | . 1 . . . 1 Highest Loss Streak 3 | . 1 . . . 3 To Critical Strikes . | . . . . . . Average Slot Usage (%) 94 | . 99 99 99 100 69 Engine 12 | . 13 14 14 14 2 Core 1 | . . . . . 8 Leg 27 | . 28 28 28 28 23 Device 10 | . 13 14 13 8 . Storage 13 | . 14 14 14 14 9 Protection 2 | . . . . 5 5 Energy Gun 5 | . 3 5 14 . 5 Energy Cannon 5 | . . . 8 14 4 Ballistic Gun 15 | . 24 22 5 14 7 Naked Turns . | . . . . . . Heaviest Build 39 | 12 15 24 31 35 39 Greatest Support 39 | 20 20 20 20 20 39 Greatest Overweight (x) 4 | . . 1 1 1 4 Average Overweight (x) . | . . . 1 1 . Largest Inventory Capacity 10 | 8 8 10 10 10 10 Average Capacity 9 | 7 8 9 10 10 9 Most Carried 10 | 5 8 10 10 10 10 Average Carried 8 | 2 7 8 9 9 8 Final Capacity 10 | 8 8 10 10 10 5 Final Carried 10 | 3 8 10 10 9 4 Class Distribution -------------------- 66% | Scavenger-Mutant 26% | Mutant 4% | Skirmisher Dominant Class ---------------- Scavenger-Mutant | -10/Materials Scavenger-Mutant | -10/Mines Scavenger-Mutant | -10/Exiles Scavenger-Mutant | -9/Mines Mutant | -8/Materials Resources | -11 -10 -10 -10 -9 -8 ----------- Run | Yrd Mat Min Exi Min Mat Matter Collected 1306 | 302 386 128 . 26 464 Remotely . | . . . . . . Salvage Created 1755 | 145 774 216 . . 620 Parts 83 | 5 40 9 . . 29 Haulers Intercepted 1 | . . . . . 1 Recyclers Shooed 1 | . 1 . . . . Parts Field Recycled . | . . . . . . Retrieved Matter . | . . . . . . Parts Self-Destructed . | . . . . . . Prevented . | . . . . . . Kills | -11 -10 -10 -10 -9 -8 ------- Run | Yrd Mat Min Exi Min Mat Combat Hostiles Destroyed 32 | . 19 6 . . 7 Melee 1 | . . . . . 1 Guns 26 | . 17 6 . . 3 AOE 5 | . 2 . . . 3 Classes Destroyed 9 | 2 5 . . . 2 Worker 1 | . 1 . . . . Builder 5 | . 1 . . . 4 Tunneler 4 | 3 . 1 . . . Hauler 1 | . . . . . 1 Recycler 1 | 1 . . . . . Watcher 7 | . 3 . . . 4 Swarmer 5 | . 3 2 . . . Grunt 26 | . 16 4 . . 6 Sentry 1 | . . . . . 1 Best Kill Streak 7 | 2 7 2 . . 6 Combat Bots Only 5 | . 5 2 . . 2 Max Kills in Single Turn 3 | 1 2 1 . . 3 Gunslinging 1 | . 1 . . . . Exploded 2 | . 2 . . . 1 Melee 1 | . . . . . 1 Uniques/NPCs Destroyed . | . . . . . . Combat | -11 -10 -10 -10 -9 -8 -------- Run | Yrd Mat Min Exi Min Mat Hostile Shots Fired 173 | . 101 30 . . 42 Missed 44 | . 29 6 . . 9 Damage Taken 2327 | . 845 276 . . 1206 Core 758 | . 145 47 . . 566 Absorbed by Shields . | . . . . . . Regen/Repaired (Parts) 167 | . 48 . . . 119 Core Remaining (%) 61 | 100 . . . 23 . Volleys Fired 153 | 8 78 22 . 2 43 Largest 3 | 2 2 2 . 1 3 Hottest 139 | 40 60 79 . 23 139 Shots Fired 283 | 16 154 44 . 2 67 Gun 271 | 16 150 44 . 2 59 Cannon 6 | . . . . . 6 Launcher 6 | . 4 . . . 2 Special . | . . . . . . Kinetic 208 | 16 124 36 . 2 30 Thermal 63 | . 26 8 . . 29 Explosive 6 | . 4 . . . 2 Electromagnetic 6 | . . . . . 6 Robot Hit Streak 9 | 6 8 9 . . 5 Robot Miss Streak 6 | 2 5 3 . 2 6 Penetration Max . | . . . . . . Secondary Targets 3 | . 3 . . . . Max Gunslinging Chain 1 | . 1 . . . . Shots Hit Robots 160 | 10 85 32 . . 33 Core Hits 97 | 5 48 14 . . 30 Critical Kills 2 | . 1 1 . . . Critical Parts Destroyed 1 | . . . . . 1 Critical Strikes 4 | . 1 1 . . 2 Burn 1 | . . . . . 1 Destroy 3 | . 1 1 . . 1 Melee Attacks . | . . . . . . Impact . | . . . . . . Slashing . | . . . . . . Piercing . | . . . . . . Sneak Attacks . | . . . . . . Combat Hostiles . | . . . . . . Follow-up Attacks . | . . . . . . Damage Inflicted 3225 | 113 1144 338 . . 1630 Guns 1772 | 113 872 338 . . 449 Cannons 31 | . . . . . 31 Explosions 1419 | . 272 . . . 1147 Melee . | . . . . . . Ramming 3 | . . . . . 3 Kinetic 1271 | 113 675 221 . . 262 Thermal 501 | . 197 117 . . 187 Explosive 407 | . 272 . . . 135 Electromagnetic 1043 | . . . . . 1043 Impact . | . . . . . . Slashing . | . . . . . . Piercing . | . . . . . . Highest Corruption 17 | . . . . . 17 Average Corruption 4 | . . . . . 4 Corruption Purged . | . . . . . . Corruption Blocked . | . . . . . . Effects 8 | . . . . . 8 Matter Fused 1 | . . . . . 1 Heat Flow Errors 3 | . . . . . 3 Energy Discharges 1 | . . . . . 1 Data Loss (minor) 1 | . . . . . 1 Data Loss (major) 1 | . . . . . 1 Misdirections 1 | . . . . . 1 Overload Shots . | . . . . . . Overflow Damage 4 | . . . . . 4 Projectiles . | . . . . . . Explosions 4 | . . . . . 4 Melee . | . . . . . . Knockbacks . | . . . . . . Impact . | . . . . . . Kinetic . | . . . . . . Secondary . | . . . . . . Self-Inflicted Damage 28 | . . . . . 28 Shots 1 | . . . . . 1 Rammed . | . . . . . . Targets Rammed 2 | . . . . . 2 Kicked 2 | . . . . . 2 Crushed . | . . . . . . Highest Temperature 696 | . 150 228 . 9 696 Average Temperature 157 | . 32 94 . 9 244 Received Heat Transfer 879 | . 480 120 . . 279 Effects 39 | . . . . . 39 Shutdowns 11 | . . . . . 11 Energy Bleed 8 | . . . . . 8 Interference 3 | . . . . . 3 Matter Decay 1 | . . . . . 1 Short Circuit 1 | . . . . . 1 Damage (minor) 5 | . . . . . 5 Damage (major) 4 | . . . . . 4 Damage (core) 6 | . . . . . 6 Siege Activations . | . . . . . . Robots Corrupted . | . . . . . . Combat Hostiles . | . . . . . . Parts Fried 2 | . . . . . 2 Impact Corruptions . | . . . . . . Robots Melted . | . . . . . . Combat Hostiles . | . . . . . . Parts Melted 2 | . . 2 . . . Heat Transferred 1301 | . 450 296 . . 555 Parts Sabotaged . | . . . . . . Parts Stolen . | . . . . . . Parts Stripped . | . . . . . . Power Chain Reactions . | . . . . . . Latent Energy Used 717 | . . . . . 717 LE Corruption 15 | . . . . . 15 Alert | -11 -10 -10 -10 -9 -8 ------- Run | Yrd Mat Min Exi Min Mat Peak Influence 305 | 20 305 210 . . 292 Initial 75 | . 13 75 . . . Average 79 | 10 150 113 . . 57 Maximum Alert Level 1 | . 1 1 . . 1 Low Security (%) 88 | 100 70 90 . 100 94 Level 1 11 | . 29 9 . . 5 Level 2 . | . . . . . . Level 3 . | . . . . . . Level 4 . | . . . . . . Level 5 . | . . . . . . High Security . | . . . . . . Max Security . | . . . . . . Squads Dispatched 10 | . 7 . . . 3 Investigation 5 | . 5 . . . . Extermination . | . . . . . . Reinforcement 5 | . 2 . . . 3 Assault . | . . . . . . Garrison . | . . . . . . Intercept . | . . . . . . Searches Triggered . | . . . . . . Construction Impeded 1 | . . . . . 1 Haulers Reinforced . | . . . . . . Active Scanning Responses . | . . . . . . Cargo Convoy Interrupts . | . . . . . . Stealth | -11 -10 -10 -10 -9 -8 --------- Run | Yrd Mat Min Exi Min Mat Distress Signals 5 | . 1 . . . 4 Communications Jammed . | . . . . . . Distress Signals . | . . . . . . Times Spotted 48 | . 23 7 . . 18 Peak Tracking Total 4 | . 4 3 . . 3 Tactical Retreats 6 | . . 1 . . 5 Traps | -11 -10 -10 -10 -9 -8 ------- Run | Yrd Mat Min Exi Min Mat Traps Triggered 4 | . 3 . . . 1 Indirectly . | . . . . . . Trap Hack Attempts . | . . . . . . Triggered . | . . . . . . Disarmed . | . . . . . . Reprogrammed . | . . . . . . Reused . | . . . . . . Traps Extracted . | . . . . . . Installed . | . . . . . . Triggered . | . . . . . . Machines | -11 -10 -10 -10 -9 -8 ---------- Run | Yrd Mat Min Exi Min Mat Machines Disabled 1 | . . . . . 1 Max in Single Turn 1 | . . . . . 1 Garrison Access 1 | . . . . . 1 Machines Repaired . | . . . . . . Machines Dismantled . | . . . . . . Machines Sabotaged . | . . . . . . Overloaded Fab Kills . | . . . . . . Hacking | -11 -10 -10 -10 -9 -8 --------- Run | Yrd Mat Min Exi Min Mat Machines Accessed 11 | . 5 2 . . 4 Terminals 6 | . 3 2 . . 1 Fabricators . | . . . . . . Repair Stations 2 | . 1 . . . 1 Recycling Units 1 | . 1 . . . . Scanalyzers 1 | . . . . . 1 Garrison Access 1 | . . . . . 1 Total Hacks 24 | . 11 2 . . 11 Successful 11 | . 2 2 . . 7 Failed 13 | . 9 . . . 4 Catastrophic 1 | . 1 . . . . Database Lockouts . | . . . . . . Manual 1 | . . . 1 . . Terminals 9 | . 6 2 . . 1 Fabricators . | . . . . . . Repair Stations 6 | . 3 . . . 3 Recycling Units 2 | . 2 . . . . Scanalyzers 4 | . . . . . 4 Garrison Access 3 | . . . . . 3 Terminal Hacks 3 | . . 2 . . 1 Zone Layout 3 | . . 2 . . 1 Fabricator Hacks . | . . . . . . Repair Station Hacks 4 | . 2 . . . 2 Scan Component 2 | . 1 . . . 1 Repair 2 | . 1 . . . 1 Recycling Unit Hacks . | . . . . . . Scanalyzer 3 | . . . . . 3 Insert Component 2 | . . . . . 2 Analyze 1 | . . . . . 1 Garrison Access Hacks 1 | . . . . . 1 Seal Access 1 | . . . . . 1 Unauthorized Hacks . | . . . . . . Terminals . | . . . . . . Fabricators . | . . . . . . Repair Stations . | . . . . . . Recycling Units . | . . . . . . Scanalyzers . | . . . . . . Garrison Access . | . . . . . . Data Cores Recovered . | . . . . . . Used . | . . . . . . Hacking Detections 10 | . 5 2 . . 3 Full Trace Events 3 | . 2 . . . 1 Feedback Events 1 | . . . . . 1 Corruption 1 | . . . . . 1 Feedback Blocked . | . . . . . . Robot Schematics Acquired . | . . . . . . Robots Built . | . . . . . . Authchips . | . . . . . . Time . | . . . . . . Total Robot Build Rating . | . . . . . . Part Schematics Acquired 1 | . . . . . 1 Parts Built . | . . . . . . Authchips . | . . . . . . Time . | . . . . . . Total Part Build Rating . | . . . . . . Parts Repaired 2 | . 1 . . . 1 Time 58 | . 26 . . . 32 Parts Recycled . | . . . . . . Recycled Matter . | . . . . . . Retrieved Matter . | . . . . . . Retrieved Components . | . . . . . . Parts Scanalyzed 1 | . . . . . 1 Part Schematics Acquired 1 | . . . . . 1 Parts Damaged . | . . . . . . Bothacking | -11 -10 -10 -10 -9 -8 ------------ Run | Yrd Mat Min Exi Min Mat Used RIF Installer . | . . . . . . Robots Hacked . | . . . . . . Non-combat . | . . . . . . Combat . | . . . . . . Robot Hacks Applied . | . . . . . . Relay Couplers Released . | . . . . . . Fabnet Peak Effective % . | . . . . . . Robots Rewired . | . . . . . . Allies Hacked . | . . . . . . Hacks Repelled . | . . . . . . Allies | -11 -10 -10 -10 -9 -8 -------- Run | Yrd Mat Min Exi Min Mat Total Allies . | . . . . . . Largest Group . | . . . . . . Highest-Rated Group . | . . . . . . Highest-Rated Ally . | . . . . . . Total Orders . | . . . . . . Ally Attacks . | . . . . . . Total Damage . | . . . . . . Kills . | . . . . . . Allies Corrupted . | . . . . . . Allies Melted . | . . . . . . Intel | -11 -10 -10 -10 -9 -8 ------- Run | Yrd Mat Min Exi Min Mat Robot Analysis Total . | . . . . . . Derelict Logs Recovered 2 | . . 1 . 1 . Drone Launches . | . . . . . . Drone Recoveries . | . . . . . . Exploration | -11 -10 -10 -10 -9 -8 ------------- Run | Yrd Mat Min Exi Min Mat Turns Passed 4175 | 111 1079 656 723 975 631 Spaces Moved 2172 | 62 594 389 372 501 254 Core 18 | 14 . . . . 4 Treads . | . . . . . . Legs 2154 | 48 594 389 372 501 250 Wheels . | . . . . . . Hover . | . . . . . . Flight . | . . . . . . Fastest Speed 50 | 50 120 120 190 190 120 Average Speed 152 | 104 120 141 190 190 131 Slowest Speed 260 | 120 120 190 190 190 260 Overloaded Moves . | . . . . . . Propulsion Burnouts . | . . . . . . Robots Hopped . | . . . . . . Cave-ins Triggered . | . . . . . . Exploration Rate (%) 56 | 4 71 75 64 98 28 Regions Visited 5 Branch Regions 3 Pre-discovered Areas 1 | . . . . 1 . Known Exits Taken 1 | . . . . 1 . Unknown Exits Taken 4 | 1 1 1 1 . . Scrap Searched 2 | . . 1 . 1 . Spaces Dug . | . . . . . . Terrain Destroyed 88 | . 32 . . . 56 Melee . | . . . . . . Projectile . | . . . . . . AOE 88 | . 32 . . . 56 Terrain Rammed . | . . . . . . Walls Destroyed . | . . . . . . Machines Disabled . | . . . . . . Actions | -11 -10 -10 -10 -9 -8 --------- Run | Yrd Mat Min Exi Min Mat Total 2789 | 93 823 457 391 522 503 Wait 297 | 9 118 29 . 11 130 Move 2167 | 61 593 388 371 500 254 Hop . | . . . . . . Pick Up 49 | 8 8 5 7 1 20 Fast Attach 12 | 2 5 1 1 1 2 Attach 26 | 5 1 1 1 . 18 Detach 4 | . . . . . 4 Swap 27 | . 10 5 2 4 6 Drop 51 | . 10 6 8 3 24 Fire 153 | 8 78 22 . 2 43 Melee . | . . . . . . Ram . | . . . . . . Kick 2 | . . . . . 2 Crush . | . . . . . . Escape Stasis . | . . . . . . Rewire 1 | . . . 1 . . Trap . | . . . . . . Miscellaneous . | . . . . . . Route ------- -11/Scrapyard -10/Materials (discovered 2 exits: *Min x2) -10/Mines (discovered 2 exits: [*Mat] / *Exi) -10/Exiles (discovered 2 exits: [*Min x2]) -9/Mines (discovered 2 exits: *Mat x2) -8/Materials (discovered 2 exits: Fac x2) History --------- Turn | Location | Event 7 | -11/Scrapyard | Discovered new exit (range 16) 112 | -11/Scrapyard | Entered Materials 317 | -10/Materials | Build established: Mutant 866 | -10/Materials | Repaired Ion Engine 896 | -10/Materials | Discovered new exit (range 15) 900 | -10/Materials | Discovered new exit (range 16) 922 | -10/Materials | Core integrity fell below 50% 1066 | -10/Materials | Build established: Scavenger-Mutant 1191 | -10/Materials | Entered Mines 1367 | -10/Mines | Learned 8 Materials zone layouts 1562 | -10/Mines | Discovered new exit (range 15) 1569 | -10/Mines | Joined a pair of Derelicts in attacking an 0b10 outpost 1840 | -10/Mines | Deemed a non-threat by the Exiles lab entrance 1840 | -10/Mines | Discovered new exit (range 5) 1847 | -10/Mines | Entered Exiles 1876 | -10/Exiles | Discovered new exit (range 15) 1895 | -10/Exiles | Met 8R-AWN 1929 | -10/Exiles | Met EX-HEX 2010 | -10/Exiles | Met EX-BIN 2037 | -10/Exiles | Aligned with FarCom system 2038 | -10/Exiles | Given EX-Vault access code 2084 | -10/Exiles | Opened EX-Vault 2092 | -10/Exiles | Found Prototype Device 2093 | -10/Exiles | Identified Cloak of Protection 2125 | -10/Exiles | Found Prototype Energy Cannon 2126 | -10/Exiles | Identified Latent Energy Streamer 2158 | -10/Exiles | Found Prototype Ballistic Gun 2216 | -10/Exiles | Warned to stay clear of 0b10 Research branches 2268 | -10/Exiles | Met EX-DEC 2334 | -10/Exiles | Discovered new exit (range 14) 2570 | -10/Exiles | Left Exiles lab with Latent Energy Streamer 2570 | -10/Exiles | Entered Mines 2636 | -9/Mines | Met a Derelict bent on vengeance 2791 | -9/Mines | Learned location of 1 exit from Materials 2936 | -9/Mines | A weapon hastily lodged in a ceiling crevice suddenly fell to the ground 3078 | -9/Mines | Learned location of Storage (-8) 3157 | -9/Mines | Discovered new exit (range 9) 3246 | -9/Mines | Discovered new exit (range 10) 3334 | -9/Mines | Received a Rocket Launcher from a helpful Derelict 3543 | -9/Mines | Identified exit to Materials 3545 | -9/Mines | Entered Materials 3545 | -8/Materials | Evolved 4 slots: Power x1, Propulsion x1, Utility x1, Weapon x1 3546 | -8/Materials | Identified exit to Factory 3626 | -8/Materials | Repaired Hrd. Light Armor Plating 3819 | -8/Materials | Core integrity fell below 50% 3827 | -8/Materials | Core integrity fell below 20% 4104 | -8/Materials | System corruption reached 10% 4162 | -8/Materials | Lost 3 parts (2n1w) 4176 | -8/Materials | Destroyed by H-55 Commando with Gauss Rifle Last Messages --------------- K-01 Serf collects debris. U-05 Engineer lays Concrete. U-05 Engineer builds a Wall. U-05 Engineer lays Concrete. Door malfunctions. G-47 Trooper destroyed. System corrupted: Substantial component data lost. ALERT: Suspicious intruders detected, dispatching Specialist reinforcements to area. W-25 Informer sends out distress signal. G-47 Trooper destroyed. K-01 Serf collects debris. Discarded Visual Processing Unit. Dropped Med. Storage Unit. Dropped Nuclear Core. K-01 Serf collects debris. Dropped Beam Rifle. System corrupted: Aluminum Leg stumbles. Penetrated by Slug. Map ----- +----------------------------------------------------+ | ????????????# ""?????????????????????????" ##### | | ????????????# ?????????????????????????#+## | | ????????????# ""????????????????????????? | | ????????????# ""????????????????????????? | | ????????????# ""????????????????????????? | | ????????????# ?????????????????????????#### | | ????????????#####????????????????????????? | | ????????????????????????????#????????????? | | ??????????????????????????? #????????????? | | ??????????????????????????? #????????????? | | ?????????????????????????? #????????????? | | ?????????????????????????? #????????????? | | ????????????????????????? #?????????????#### | | ???????################## ###??????????????# | | ???????# # # #######????????????? | | ???????# """""# ????????????? | | ???????# " !%| ???????????? | | ???????# " ! |H ???????????? | | ?????????""" " % !|%= ???????????? | | ???????? """ "T " " !%= % ???????????? | | ???????# """ " %# "# ! #####??????????????? | | ???????# # ##? #"###??????????????????? | | ???????###########! ##??##??????????????????????? | | ????????????????##%= ###?????????????????????????? | | ???????? ??????# #######################????? | | ???????# # % ]@ ??? | | ???????# / *!w hs ??? | | ???????# # k* ??? | | ???????# # #######/#########+####?????? | | ???????# ?### ####### #???????????????? | | ???????# ???# # # #???????????????? | | ???????# ????# # """ # #???????????????? | | ???????#######????# # """ # #???????????????? | | ?######???????????# # """ + ############????? | | ?# #???????????# + # #?????# T ????? | | ?# #???????????# # ########?????# ????? | | ?# * #???????????# # #????????????# ????? | | ?# #???????????# #####+#????????????# ????? | | ?# ] #???????????# #??## #????????????# ????? | | ?# #???????????# #??## ####?????????######????? | | ?# ! *#???????????# #??## #""#################???? | | ## =* ##??????????# #?### / #???? | | #! = ####????????# #?# # ### !#???? | | ###+############## ##### """ #?# #???? | | # % "G" ### #???? | | # ! " " # ! #???? | | + """ = / #???? | | # """ [[ = # #???? | | # """ #T######### #???? | | # #########???????# / #???? | +----------------------------------------------------+ Best States ------------- Heat Dissipation 39 Energy Generation 23 Energy Capacity 380 Matter Stores 300 Matter Capacity 300 Sight Range 18 Robot Scan Range 14 Terrain Scan Range 16 Terrain Scan Density 10 Armor Coverage 300 Evasion (%) 55 Item Schematics ----------------- Hrd. Light Armor Plating | -8/Materials | Scanalyzed Robot Schematics ------------------ None Fabricated ------------ Nothing Alien Tech Used ----------------- None Achievements -------------- None Challenges ------------ None Game ------ Seed AbsorptionComponentMantle Manual? 0 Play Time 00:37:20 Cumulative 10.2 hours Start 2024.05.12 @ 17:17:43 End 2024.05.12 @ 17:55:28 Sessions 1 Manual Loads 0 Difficulty Rogue Special Mode None Game No. 8 Rogue 8 Adventurer 0 Explorer 0 Win Type - Total 0 Types 0/0/0/0/0/0/0/0/0 Lore% 11 Gallery% 12 Achievement% 13 Wizard Run 0 Options --------- Layout 1 ASCII 0 Keyboard 0 Movement Mouse Keybinds 0 Fullscreen 1 Font 24/Smallcaps Map View 50x35 Zoom Use 0% Tactical HUD 0 Map Filters NONE Filters NONE Steam 1 RUN: 0a0ebf8c-9a19-4720-8bfe-62ac6136a0c7